bitfinex-derivatives/quotes_ETHF0:USTF0_20250708
["timestamp","ask_amount","ask_price","bid_price","bid_amount"]
[1751949323484,39.60952716,2543.8,2543.7,9.210604]
[1751949323886,39.60952716,2543.8,2543.7,9.853204]
[1751949324691,4.36852716,2543.8,2543.7,9.853204]
[1751949324983,31.27152716,2543.8,2543.7,9.853204]
[1751949326287,33.62101275,2543.8,2543.7,9.853204]
[1751949329083,33.60801275,2543.8,2543.7,9.853204]
[1751949331392,31.25852716,2543.8,2543.7,9.853204]
[1751949332286,32.27702716,2543.8,2543.7,8.564104]
[1751949333394,32.27402716,2543.8,2543.7,8.564104]
[1751949334191,35.79825555,2543.8,2543.7,8.564104]
[1751949335293,7.89275555,2543.8,2543.7,9.210604]
[1751949335493,43.11775555,2543.8,2543.7,9.210604]
[1751949335994,43.11775555,2543.8,2543.7,8.564104]
[1751949336995,43.11775555,2543.8,2543.7,9.210604]
[1751949340301,46.32233129,2543.8,2543.7,8.564104]
[1751949341100,45.30383129,2543.8,2543.7,8.564104]
[1751949341602,46.32233129,2543.8,2543.7,8.564104]
[1751949341796,45.30383129,2543.8,2543.7,9.210604]
[1751949343702,47.01175555,2543.8,2543.7,9.210604]
[1751949344501,45.63665555,2543.8,2543.7,10.267904]
[1751949345901,45.63665555,2543.8,2543.7,9.210604]
[1751949348310,45.63665555,2543.8,2543.7,10.267904]
[1751949348904,14.88465555,2543.8,2543.7,10.267904]
[1751949349209,38.21342716,2543.8,2543.7,10.267904]
[1751949349397,11.36042716,2543.8,2543.7,10.267904]
[1751949349602,38.21242716,2543.8,2543.7,10.267904]
[1751949351411,3.89375105,2543.8,2543.7,13.24019974]
[1751949351704,31.53194105,2543.8,2543.7,12.45397974]
[1751949352111,29.17331716,2543.8,2543.7,12.45397974]
[1751949352807,29.17331716,2543.8,2543.7,13.85457974]
[1751949353909,2.32131716,2543.8,2543.7,13.85457974]
[1751949354211,29.16231716,2543.8,2543.7,13.85457974]
[1751949354511,2.32131716,2543.8,2543.7,13.85457974]
[1751949354915,29.16131716,2543.8,2543.7,13.85457974]
[1751949355416,2.32131716,2543.8,2543.7,13.85457974]
[1751949355612,29.16131716,2543.8,2543.7,13.85457974]
[1751949357218,29.16131716,2543.8,2543.7,12.45397974]
[1751949358911,2.32131716,2543.8,2543.7,13.80187974]
[1751949359117,29.15031716,2543.8,2543.7,13.80187974]
[1751949359422,29.15284228,2543.8,2543.7,14.58809974]
[1751949360221,29.15284228,2543.8,2543.7,13.80187974]
[1751949362420,29.15284228,2543.8,2543.7,14.58809974]
[1751949362722,1.53765228,2543.8,2543.7,14.58809974]
[1751949362920,29.14384228,2543.8,2543.7,14.58809974]
[1751949363722,28.35765228,2543.8,2543.7,14.58809974]
[1751949364223,1.53765228,2543.8,2543.7,14.58809974]
[1751949364723,0.78619,2543.8,2543.7,14.58809974]
[1751949365123,27.60617,2543.9,2543.8,0.78619]
[1751949365323,29.14224221,2543.9,2543.8,0.78619]
[1751949365516,29.14224221,2543.9,2543.8,4.36139]
[1751949365921,2.32224221,2543.9,2543.8,4.36139]
[1751949368618,1.53607221,2543.9,2543.8,4.36139]
[1751949368823,0.78616,2543.9,2543.8,4.36139]
[1751949369021,58.61111,2544.3,2543.8,3.5752]
[1751949369228,57.43203,2544.3,2544.2,2.18607574]
[1751949369526,85.77743881,2544.3,2544.2,2.86417574]
[1751949370229,85.77743881,2544.3,2544.2,11.42827974]
[1751949370623,85.77743881,2544.3,2544.2,9.242204]
[1751949370829,58.96743881,2544.3,2544.2,9.242204]
[1751949371026,87.17133881,2544.3,2544.2,9.242204]
[1751949375632,88.14963881,2544.3,2544.2,8.564104]
[1751949376333,87.17133881,2544.3,2544.2,8.564104]
[1751949376729,2.32143881,2544.3,2544.2,12.38507974]
[1751949376932,3.02363881,2544.3,2544.2,12.38507974]
[1751949377131,0.78603,2544.3,2544.2,10.199004]
[1751949377434,1.48823,2544.3,2544.2,12.38507974]
[1751949378134,1.48823,2544.3,2544.2,13.04537974]
[1751949378632,0.78603,2544.3,2544.2,13.04537974]
[1751949379129,1.48823,2544.3,2544.2,13.04537974]
[1751949379933,1.48823,2544.3,2544.2,13.83144974]
[1751949380126,1.48823,2544.3,2544.2,12.87464974]
[1751949381633,1.48823,2544.3,2544.2,13.83144974]
[1751949384834,27.58003,2544.4,2544.3,0.786]
[1751949385231,27.58003,2544.4,2544.3,10.991604]
[1751949385438,0.78603,2544.4,2544.3,10.991604]
[1751949385629,27.58003,2544.4,2544.3,10.991604]
[1751949386230,0.78603,2544.4,2544.3,10.991604]
[1751949387135,27.57999,2544.5,2544.4,0.786]
[1751949387335,29.11283189,2544.5,2544.4,2.97207574]
[1751949387535,29.79293189,2544.5,2544.4,4.61357574]
[1751949387737,2.99891189,2544.5,2544.4,4.61357574]
[1751949387937,26.793,2544.5,2544.4,4.61357574]
[1751949388632,27.57897,2544.5,2544.4,4.61357574]
[1751949388832,26.793,2544.5,2544.4,4.61357574]
[1751949389137,0.78596,2544.6,2544.5,0.78597]
[1751949389332,29.79182879,2544.6,2544.5,1.45437]
[1751949389533,29.11172879,2544.6,2544.5,3.13177]
[1751949389932,29.79182879,2544.6,2544.5,3.13177]
[1751949390438,2.99882879,2544.6,2544.5,11.695874]
[1751949391035,2.99882879,2544.6,2544.5,10.909904]
[1751949392032,2.99882879,2544.6,2544.5,11.695874]
[1751949392227,29.79182879,2544.6,2544.5,11.695874]
[1751949394138,29.79182879,2544.6,2544.5,10.722774]
[1751949394939,29.00586879,2544.6,2544.5,10.722774]
[1751949395238,29.00586879,2544.6,2544.5,11.695874]
[1751949395631,1.53276879,2544.6,2544.5,11.695874]
[1751949395832,27.01840181,2544.7,2544.6,0.78594]
[1751949396028,28.5507291,2544.7,2544.6,3.64041574]
[1751949396228,1.7587291,2544.7,2544.6,4.61351574]
[1751949396736,0.22640181,2544.7,2544.6,4.61351574]
[1751949396938,1.75866508,2544.7,2544.6,4.61351574]
[1751949397136,1.75866508,2544.7,2544.6,5.94921574]
[1751949397331,27.57683,2545.0,2544.9,0.78585]
[1751949397536,29.11072019,2545.0,2544.9,4.61342574]
[1751949398139,29.11072019,2545.0,2544.9,3.82757574]
[1751949398340,29.79082019,2545.0,2544.9,1.6415]
[1751949398540,29.79082019,2545.0,2544.9,2.85447574]
[1751949398937,29.11072019,2545.0,2544.9,2.85447574]
[1751949399237,29.11072019,2545.0,2544.9,4.61342574]
[1751949399238,29.79082019,2545.0,2544.9,4.61342574]
[1751949399440,29.79082019,2545.0,2544.9,3.82757574]
[1751949399641,29.78982019,2545.0,2544.9,3.82757574]
[1751949400341,29.78982019,2545.0,2544.9,12.39167974]
[1751949400641,29.78982019,2545.0,2544.9,13.17752974]
[1751949401045,29.78982019,2545.0,2544.9,12.39167974]
[1751949401532,29.78982019,2545.0,2544.9,11.41857974]
[1751949402438,29.78982019,2545.0,2544.9,12.20442974]
[1751949403338,29.78982019,2545.0,2544.9,13.17752974]
[1751949403538,29.00399019,2545.0,2544.9,13.17752974]
[1751949403741,29.78981019,2545.0,2544.9,13.17752974]
[1751949403938,29.78881019,2545.0,2544.9,13.17752974]
[1751949404241,2.31971019,2545.0,2544.9,13.17752974]
[1751949406838,2.31971019,2545.0,2544.9,12.39167974]
[1751949407039,2.99981019,2545.0,2544.9,13.17752974]
[1751949407439,2.99981019,2545.0,2544.9,12.39167974]
[1751949407847,2.99981019,2545.0,2544.9,13.17752974]
[1751949408245,2.99981019,2545.0,2544.9,8.564104]
[1751949408445,4.29161019,2545.0,2544.9,10.018354]
[1751949409141,4.29161019,2545.0,2544.9,10.991454]
[1751949409545,4.29161019,2545.0,2544.9,10.205604]
[1751949409740,2.99981019,2545.0,2544.9,10.205604]
[1751949409947,2.99761374,2545.0,2544.9,10.205604]
[1751949410247,1.46592,2545.0,2544.9,10.205604]
[1751949410546,2.99761031,2545.0,2544.9,10.205604]
[1751949410745,2.99761031,2545.0,2544.9,9.232504]
[1751949411046,2.99761031,2545.0,2544.9,10.205604]
[1751949412947,2.99761031,2545.0,2544.9,9.232504]
[1751949416144,2.99761031,2545.0,2544.9,10.278204]
[1751949416341,1.53169031,2545.0,2544.9,10.278204]
[1751949416544,58.59233,2545.3,2544.9,11.064034]
[1751949416744,0.78582,2545.0,2544.9,10.018334]
[1751949416944,0.78582,2545.0,2544.9,12.20440974]
[1751949417448,0.78582,2545.0,2544.9,13.25010974]
[1751949417650,1.96417,2545.5,2544.9,14.65035548]
[1751949417850,0.78575,2545.3,2545.1,0.78577]
[1751949418044,0.78575,2545.3,2545.2,2.88267574]
[1751949418441,0.78575,2545.3,2545.2,3.92837574]
[1751949418649,0.78575,2545.3,2545.2,4.71413574]
[1751949418952,0.78575,2545.3,2545.2,3.92837574]
[1751949419152,1.44425,2545.3,2545.2,0.6966]
[1751949419352,1.44425,2545.3,2545.2,2.88267574]
[1751949420151,1.44425,2545.3,2545.2,11.44677974]
[1751949421752,1.44425,2545.3,2545.2,12.49247974]
[1751949422553,1.44425,2545.3,2545.2,11.44677974]
[1751949422852,0.6585,2545.3,2545.2,13.27823974]
[1751949423047,1.44423,2545.3,2545.2,13.27823974]
[1751949423248,1.44423,2545.3,2545.2,12.49247974]
[1751949423449,1.44423,2545.3,2545.2,13.27823974]
[1751949427453,0.6585,2545.3,2545.2,13.27823974]
[1751949428849,1.44423,2545.3,2545.2,13.27823974]
[1751949433261,1.44423,2545.3,2545.2,12.49247974]
[1751949433660,1.44423,2545.3,2545.2,13.27823974]
[1751949434164,0.6585,2545.3,2545.2,13.27823974]
[1751949434460,1.44423,2545.3,2545.2,13.27823974]
[1751949434761,0.6585,2545.3,2545.2,13.27823974]
[1751949435165,1.44423,2545.3,2545.2,13.27823974]
[1751949435663,0.6585,2545.3,2545.2,13.27823974]
[1751949435864,0.78571,2545.4,2545.3,0.78573]
[1751949436165,0.78571,2545.4,2545.3,2.52803]
[1751949436360,0.78571,2545.4,2545.2,10.75017974]
[1751949436361,0.78573,2545.3,2545.2,10.75017974]
[1751949436569,1.44423,2545.3,2545.2,12.49247974]
[1751949436754,0.78573,2545.3,2545.2,12.49247974]
[1751949436954,1.44423,2545.3,2545.2,12.49247974]
[1751949437360,1.44423,2545.3,2545.2,8.564104]
[1751949437666,2.97424578,2545.3,2545.2,10.75017974]
[1751949437865,2.97424578,2545.3,2545.2,11.44677974]
[1751949438568,1.44423,2545.3,2545.2,11.44677974]
[1751949439368,1.44423,2545.3,2545.2,12.23253974]
[1751949439861,0.78573,2545.3,2545.2,11.53593974]
[1751949440062,0.78572,2545.4,2545.3,0.7857]
[1751949440362,3.00640168,2545.4,2545.3,0.7857]
[1751949440567,2.31590168,2545.4,2545.3,0.7857]
[1751949440967,0.78572,2545.4,2545.3,0.7857]
[1751949441368,2.3165098,2545.4,2545.3,0.7857]
[1751949441567,0.78572,2545.4,2545.3,2.5056]
[1751949442364,1.47622,2545.4,2545.3,1.7199]
[1751949442569,0.78572,2545.4,2545.3,1.7199]
[1751949443472,3.00747363,2545.4,2545.3,2.50563]
[1751949443674,2.31697363,2545.4,2545.3,2.50563]
[1751949444369,3.00747363,2545.4,2545.3,1.7199]
[1751949444563,3.00747363,2545.4,2545.3,0.6742]
[1751949444971,0.78573,2545.3,2545.2,8.564104]
[1751949445172,0.78573,2545.3,2545.2,12.21013974]
[1751949445369,0.78573,2545.3,2545.2,13.21233974]
[1751949445570,1.47623,2545.3,2545.2,13.21233974]
[1751949445767,1.3445,2545.5,2545.3,0.78571]
[1751949446071,2.82066,2545.5,2545.4,2.87777574]
[1751949446277,4.35234282,2545.5,2545.4,2.87777574]
[1751949446470,4.35234282,2545.5,2545.4,3.55197574]
[1751949447275,4.35234282,2545.5,2545.4,2.86027574]
[1751949447474,5.39314282,2545.5,2545.4,2.86027574]
[1751949447672,5.39314282,2545.5,2545.2,9.233004]
[1751949447673,0.78573,2545.3,2545.2,11.41907974]
[1751949447970,2.31741282,2545.3,2545.2,12.09327974]
[1751949448771,3.00791282,2545.3,2545.2,12.09327974]
[1751949450372,3.00791282,2545.3,2545.2,9.233004]
[1751949450677,3.00791282,2545.3,2545.2,8.564104]
[1751949450975,4.38901282,2545.3,2545.2,8.564104]
[1751949451367,4.38901282,2545.3,2545.2,9.238304]
[1751949452077,5.42981282,2545.3,2545.2,9.238304]
[1751949452774,12.61588856,2545.3,2545.2,8.33770219]
[1751949453171,50.04341476,2545.3,2545.2,8.33770219]
[1751949455977,53.93741476,2545.3,2545.2,8.33770219]
[1751949456376,53.24691476,2545.3,2545.2,8.33770219]
[1751949458084,50.89138856,2545.3,2545.2,8.33770219]
[1751949458776,53.24416329,2545.3,2545.2,8.33770219]
[1751949461076,53.23998912,2545.3,2545.2,8.33770219]
[1751949461277,53.23998912,2545.3,2545.2,7.53755219]
[1751949461682,54.41144278,2545.3,2545.2,5.35942219]
[1751949461882,50.88721439,2545.3,2545.2,3.27890219]
[1751949462485,91.68721439,2545.3,2545.2,1.13659219]
[1751949462784,91.68721439,2545.3,2545.2,2.19e-06]
[1751949464183,95.2126942,2545.3,2545.2,2.19e-06]
[1751949465077,95.2186942,2545.3,2545.2,2.19e-06]
[1751949465685,94.04308916,2545.3,2545.2,2.19e-06]
[1751949465982,91.69321439,2545.3,2545.2,2.19e-06]
[1751949466185,94.04297938,2545.3,2545.2,2.19e-06]
[1751949468588,95.2186942,2545.3,2545.2,2.19e-06]
[1751949469480,57.95461846,2545.3,2545.2,2.19e-06]
[1751949469685,91.69321439,2545.3,2545.2,2.19e-06]
[1751949470282,91.69228757,2545.3,2545.2,2.19e-06]
[1751949470678,94.04170745,2545.3,2545.2,2.19e-06]
[1751949472193,91.69228757,2545.3,2545.2,2.19e-06]
[1751949473191,86.69228757,2545.3,2545.2,2.19e-06]
[1751949474893,90.21776738,2545.3,2545.2,2.19e-06]
[1751949475094,55.13976738,2545.3,2545.2,2.19e-06]
[1751949475293,90.21676738,2545.3,2545.2,2.19e-06]
[1751949478096,86.69128757,2545.3,2545.2,2.19e-06]
[1751949485002,86.69128757,2545.3,2545.2,0.67580219]
[1751949485003,82.08231183,2545.3,2545.2,0.67580219]
[1751949488704,47.00631183,2545.3,2545.2,1.67570219]
[1751949489000,41.28131183,2545.3,2545.2,1.67570219]
[1751949489203,41.28131183,2545.3,2545.2,2.98940219]
[1751949490700,18.03871752,2545.3,2545.2,2.98940219]
[1751949490900,43.63803807,2545.3,2545.2,2.98940219]
[1751949491514,39.74403807,2545.3,2545.2,2.98940219]
[1751949492308,12.96603807,2545.3,2545.2,2.98940219]
[1751949492502,39.74303807,2545.3,2545.2,2.98940219]
[1751949493104,39.74387097,2545.3,2545.2,2.98940219]
[1751949494410,38.21645624,2545.3,2545.2,2.98940219]
[1751949494611,39.74369169,2545.3,2545.2,2.98940219]
[1751949495108,40.39729169,2545.3,2545.2,2.98940219]
[1751949498410,38.04056545,2545.3,2545.2,2.98940219]
[1751949502112,38.04056545,2545.3,2545.2,1.67570219]
[1751949507910,38.04056545,2545.3,2545.2,0.67580219]
[1751949508315,38.04056545,2545.3,2545.2,1.71530219]
[1751949508516,39.08716545,2545.3,2545.2,2.19e-06]
[1751949508817,44.00277114,2545.3,2545.2,2.19e-06]
[1751949509011,40.46736545,2545.3,2545.2,2.19e-06]
[1751949511219,49.36136545,2545.3,2545.2,2.19e-06]
[1751949513619,1.96455,2545.0,2544.5,1.7087]
[1751949513820,0.78594,2544.6,2544.5,0.6692]
[1751949514023,29.73107545,2544.6,2544.5,1.3689]
[1751949514623,29.73107545,2544.6,2544.5,2.4084]
[1751949515822,29.73107545,2544.6,2544.5,1.3689]
[1751949516013,31.91715119,2544.6,2544.5,0.6692]
[1751949516219,33.32715119,2544.6,2544.5,1.3689]
[1751949516414,31.14107545,2544.6,2544.5,1.3689]
[1751949516820,31.14107545,2544.6,2544.5,9.933004]
[1751949518324,31.14107545,2544.6,2544.5,9.263804]
[1751949518525,34.54201157,2544.6,2544.5,8.564104]
[1751949518928,32.18767545,2544.6,2544.5,8.564104]
[1751949519130,34.54201157,2544.6,2544.5,8.564104]
[1751949519326,38.43601157,2544.6,2544.5,8.564104]
[1751949520527,79.23601157,2544.6,2544.5,8.564104]
[1751949522128,76.88167545,2544.6,2544.5,8.564104]
[1751949522332,79.23601157,2544.6,2544.5,8.564104]
[1751949525229,76.88167545,2544.6,2544.5,8.564104]
[1751949526830,79.23601157,2544.6,2544.5,8.564104]
[1751949527832,76.88167545,2544.6,2544.5,8.564104]
[1751949528634,79.23601157,2544.6,2544.5,8.564104]
[1751949531534,78.02115119,2544.6,2544.5,9.241404]
[1751949533127,80.37548731,2544.6,2544.5,9.241404]
[1751949533438,78.02115119,2544.6,2544.5,9.241404]
[1751949534132,80.37548731,2544.6,2544.5,9.241404]
[1751949537034,78.96548731,2544.6,2544.5,9.241404]
[1751949538142,76.61115119,2544.6,2544.5,9.241404]
[1751949541035,80.14265537,2544.6,2544.5,9.241404]
[1751949543039,81.47795537,2544.6,2544.5,9.241404]
[1751949544038,81.47795537,2544.6,2544.5,8.564104]
[1751949544239,82.46125537,2544.6,2544.5,8.564104]
[1751949544839,82.46125537,2544.6,2544.5,6.765664]
[1751949545144,82.46125537,2544.6,2543.8,0.9779]
[1751949545145,0.78616,2543.9,2543.8,0.9779]
[1751949545348,64.81423574,2543.9,2543.8,0.6773]
[1751949545544,68.69838453,2543.9,2543.8,0.6773]
[1751949545743,107.14147119,2543.9,2543.8,0.6773]
[1751949545944,66.34147119,2543.9,2543.8,0.6773]
[1751949546441,0.78625,2543.6,2543.5,0.9779]
[1751949546648,0.78634,2543.3,2543.2,1.2868]
[1751949546846,55.86814049,2543.3,2543.2,1.9641]
[1751949547046,55.86842113,2543.3,2543.2,6.9641]
[1751949547246,54.33234,2543.3,2543.2,7.942]
[1751949547647,54.33234,2543.3,2543.2,2.942]
[1751949547648,55.86364477,2543.3,2543.2,2.942]
[1751949548349,55.86364477,2543.3,2543.2,11.506104]
[1751949549552,54.33234,2543.3,2543.2,11.506104]
[1751949550250,54.33234,2543.3,2543.2,13.69217974]
[1751949550451,54.33234,2543.3,2543.2,18.69217974]
[1751949550650,27.56034,2543.3,2543.2,18.69217974]
[1751949551047,26.774,2543.3,2543.2,18.69217974]
[1751949551352,27.56034,2543.3,2543.2,19.47854974]
[1751949552550,27.56034,2543.3,2543.2,18.69217974]
[1751949554846,0.78634,2543.3,2543.2,18.69217974]
[1751949557453,0.78634,2543.3,2543.2,10.219304]
[1751949559452,27.56234,2543.4,2543.2,10.219304]
[1751949559659,0.78634,2543.3,2543.2,10.219304]
[1751949559854,0.78634,2543.3,2543.2,10.589804]
[1751949560258,27.56233,2543.4,2543.2,10.589804]
[1751949560459,27.56233,2543.4,2543.3,0.9779]
[1751949560658,27.56233,2543.4,2543.3,1.6176]
[1751949561354,28.23383,2543.4,2543.3,1.6176]
[1751949561553,27.56233,2543.4,2543.3,1.6176]
[1751949563262,26.776,2543.4,2543.3,1.6176]
[1751949563456,27.56231,2543.4,2543.3,3.81054]
[1751949564361,26.776,2543.4,2543.3,3.81053]
[1751949564556,26.776,2543.4,2543.3,3.0242]
[1751949564757,26.776,2543.4,2543.3,3.81053]
[1751949565362,27.56231,2543.4,2543.3,12.374634]
[1751949568365,27.56131,2543.4,2543.3,12.374634]
[1751949571770,0.78628,2543.5,2543.4,0.78627]
[1751949572069,0.78628,2543.5,2543.4,5.30584574]
[1751949572269,27.56028,2543.6,2543.5,0.78628]
[1751949572461,29.09261229,2543.6,2543.5,3.61205574]
[1751949572662,29.09258229,2543.6,2543.5,4.61965574]
[1751949572857,29.76408229,2543.6,2543.5,1.6473]
[1751949573067,29.09258229,2543.6,2543.5,1.6473]
[1751949573664,29.76408229,2543.6,2543.5,1.6473]
[1751949573956,29.09258229,2543.6,2543.5,1.6473]
[1751949574366,29.09258229,2543.6,2543.5,2.43358]
[1751949575269,28.30633229,2543.6,2543.5,10.997684]
[1751949575468,28.30633229,2543.6,2543.5,13.18375974]
[1751949576471,29.09258229,2543.6,2543.5,13.18375974]
[1751949577865,29.09258229,2543.6,2543.5,10.997684]
[1751949578072,29.76408229,2543.6,2543.5,10.997684]
[1751949578674,29.76408229,2543.6,2543.5,9.990084]
[1751949578970,29.76408229,2543.6,2543.5,10.997684]
[1751949579369,29.76408229,2543.6,2543.5,10.211404]
[1751949580876,29.09258229,2543.6,2543.5,10.211404]
[1751949581465,29.76408229,2543.6,2543.5,10.211404]
[1751949582174,29.09258229,2543.6,2543.5,10.211404]
[1751949582368,29.76408229,2543.6,2543.5,10.211404]
[1751949582572,29.76408229,2543.6,2543.5,9.203804]
[1751949583263,30.41928229,2543.6,2543.5,9.203804]
[1751949584273,31.40048229,2543.6,2543.5,8.564104]
[1751949584474,32.71858229,2543.6,2543.5,8.564104]
[1751949585777,31.73738229,2543.6,2543.5,8.564104]
[1751949586770,31.73738229,2543.6,2543.5,9.203804]
[1751949587180,31.73738229,2543.6,2543.5,8.564104]
[1751949587872,31.73738229,2543.6,2543.5,9.203804]
[1751949592484,31.73738229,2543.6,2543.5,10.251904]
[1751949592982,29.76408229,2543.6,2543.5,10.251904]
[1751949593480,29.08858229,2543.6,2543.5,10.251904]
[1751949595687,29.73718229,2543.6,2543.5,10.251904]
[1751949595888,29.08858229,2543.6,2543.5,10.251904]
[1751949597183,29.73718229,2543.6,2543.5,10.251904]
[1751949597782,29.08858229,2543.6,2543.5,10.251904]
[1751949599191,2.31858229,2543.6,2543.5,10.251904]
[1751949599387,29.08658229,2543.6,2543.5,10.251904]
[1751949599585,1.53233229,2543.6,2543.5,10.251904]
[1751949599782,28.29933229,2543.6,2543.5,11.038184]
[1751949600089,29.08558229,2543.6,2543.5,11.038184]
[1751949600789,1.53233229,2543.6,2543.5,11.038184]
[1751949600992,28.29933229,2543.6,2543.5,11.038184]
[1751949601188,29.08558229,2543.6,2543.5,11.038184]
[1751949601388,2.31858229,2543.6,2543.5,11.038184]
[1751949603090,0.78619,2543.9,2543.8,0.78616]
[1751949603391,28.31271387,2543.9,2543.8,4.66693574]
[1751949603791,28.31239254,2543.9,2543.8,4.66693574]
[1751949604293,29.09855254,2543.9,2543.8,4.66693574]
[1751949604592,29.09755254,2543.9,2543.8,4.66693574]
[1751949605292,27.55216,2543.9,2543.8,13.23103974]
[1751949605490,26.766,2543.9,2543.8,13.23103974]
[1751949606594,28.20076,2543.9,2543.8,13.23103974]
[1751949606889,29.74466394,2543.9,2543.8,13.23103974]
[1751949607095,2.97866394,2543.9,2543.8,12.18293974]
[1751949607293,28.19876,2543.9,2543.8,12.18293974]
[1751949607594,27.4126,2543.9,2543.8,12.18293974]
[1751949608791,27.4126,2543.9,2543.8,13.23103974]
[1751949610692,27.4126,2543.9,2543.8,12.18293974]
[1751949610893,28.19876,2543.9,2543.8,9.996864]
[1751949611099,28.19876,2543.9,2543.8,9.210704]
[1751949611293,27.4126,2543.9,2543.8,9.996894]
[1751949611494,27.4126,2543.9,2543.8,9.210704]
[1751949612401,28.19876,2543.9,2543.8,9.210704]
[1751949615004,29.57506,2543.9,2543.8,8.564104]
[1751949615197,29.57506,2543.9,2543.8,9.210704]
[1751949620999,29.57506,2543.9,2543.8,10.258804]
[1751949621304,31.11660482,2543.9,2543.8,10.258804]
[1751949621505,29.57506,2543.9,2543.8,9.210704]
[1751949622209,31.11674849,2543.9,2543.8,9.210704]
[1751949624602,31.11674849,2543.9,2543.8,9.263904]
[1751949625103,31.11674849,2543.9,2543.8,8.564104]
[1751949625403,31.11737323,2543.9,2543.8,9.263904]
[1751949628212,31.11737323,2543.9,2543.8,10.050094]
[1751949628614,31.11737323,2543.9,2543.8,11.070594]
[1751949628908,31.11737323,2543.9,2543.8,10.284404]
[1751949629511,31.11737323,2543.9,2543.8,9.263904]
[1751949629715,31.11737323,2543.9,2543.8,10.284404]
[1751949629904,31.11737323,2543.9,2543.8,9.263904]
[1751949631703,31.11737323,2543.9,2543.8,10.284404]
[1751949632808,31.11737323,2543.9,2543.8,11.0051624]
[1751949633404,29.74107323,2543.9,2543.8,12.8118524]
[1751949634003,2.97707323,2543.9,2543.8,12.8118524]
[1751949634310,29.73307323,2543.9,2543.8,12.8118524]
[1751949638215,29.73307323,2543.9,2543.8,11.7913524]
[1751949638414,29.73307323,2543.9,2543.8,12.8118524]
[1751949639215,29.08447323,2543.9,2543.8,12.8118524]
[1751949639409,1.54231323,2543.9,2543.8,12.8118524]
[1751949639814,1.54231323,2543.9,2543.8,14.1528524]
[1751949640712,2.35691334,2544.3,2543.8,19.1738108]
[1751949640919,3.14289334,2544.5,2544.4,0.786]
[1751949641112,28.18508,2544.5,2544.4,2.5272584]
[1751949641516,1.43208,2544.5,2544.4,2.5272584]
[1751949641717,28.18408,2544.5,2544.4,2.5272584]
[1751949642616,1.43208,2544.5,2544.4,2.5272584]
[1751949642819,28.18408,2544.5,2544.4,2.96135762]
[1751949643408,27.3981,2544.5,2544.4,2.96135762]
[1751949644418,26.752,2544.5,2544.4,4.68165762]
[1751949645118,56.624,2544.7,2544.4,3.89565762]
[1751949645310,56.624,2544.7,2544.6,2.96129762]
[1751949645515,83.375,2544.7,2544.6,2.96129762]
[1751949645721,83.374,2544.7,2544.6,2.96129762]
[1751949646016,83.374,2544.7,2544.6,4.68159762]
[1751949646220,84.15991,2544.7,2544.6,4.68159762]
[1751949646521,83.374,2544.7,2544.6,4.68159762]
[1751949647621,26.75,2544.7,2544.6,4.68159762]
[1751949647822,0.7859,2544.8,2544.7,0.78591]
[1751949648016,0.7859,2544.8,2544.7,2.50621]
[1751949648220,27.5359,2544.8,2544.7,2.50621]
[1751949648620,28.182,2544.8,2544.7,2.50621]
[1751949649530,28.182,2544.8,2544.7,1.7203]
[1751949650022,28.182,2544.8,2544.7,0.6998]
[1751949650219,28.3767,2544.8,2544.7,8.564104]
[1751949650423,29.16258,2544.8,2544.7,8.564104]
[1751949650617,31.22368,2544.8,2544.7,8.564104]
[1751949651432,36.22368,2544.8,2544.7,7.02179077]
[1751949652122,38.58059334,2544.8,2544.7,7.02179077]
[1751949652526,39.75905001,2544.8,2544.7,7.02179077]
[1751949652722,41.28350293,2544.8,2544.7,7.02179077]
[1751949653324,40.09892545,2544.8,2544.7,7.02179077]
[1751949653736,80.94992545,2544.8,2544.7,7.02179077]
[1751949653932,78.59913292,2544.8,2544.7,7.02179077]
[1751949654133,82.12543799,2544.8,2544.7,7.02179077]
[1751949654329,86.01943799,2544.8,2544.7,7.02179077]
[1751949654724,82.49313292,2544.8,2544.7,7.02179077]
[1751949654925,86.01954642,2544.8,2544.7,7.02179077]
[1751949655232,142.63854642,2544.8,2544.7,7.02179077]
[1751949656326,124.17754642,2544.8,2544.7,7.02179077]
[1751949656534,153.09990404,2544.8,2544.7,7.02179077]
[1751949657439,153.09990404,2544.8,2544.7,6.20996077]
[1751949657737,149.57349054,2544.8,2544.7,6.20996077]
[1751949659139,149.57349054,2544.8,2544.7,5.36461077]
[1751949659340,149.57349054,2544.8,2544.7,4.46452077]
[1751949659938,149.57349054,2544.8,2544.7,3.60089077]
[1751949661440,149.57349054,2544.8,2544.7,2.50743077]
[1751949661641,149.57349054,2544.8,2544.7,0.20097077]
[1751949661840,149.57349054,2544.8,2544.7,7.7e-07]
[1751949662635,0.78613,2544.0,2543.9,0.6699]
[1751949662840,54.28113,2544.0,2543.9,1.3673]
[1751949663738,54.28113,2544.0,2543.9,2.3935]
[1751949665335,54.28113,2544.0,2543.9,1.3673]
[1751949665744,54.28113,2544.0,2543.9,9.931404]
[1751949667541,59.19983,2544.0,2543.9,8.564104]
[1751949667740,62.1376995,2544.0,2543.9,8.564104]
[1751949668243,69.3999995,2544.0,2543.9,8.564104]
[1751949668444,69.3999995,2544.0,2543.9,9.261504]
[1751949669745,70.4246995,2544.0,2543.9,9.261504]
[1751949670545,70.4246995,2544.0,2543.9,8.564104]
[1751949674635,69.3999995,2544.0,2543.9,8.564104]
[1751949675848,69.3999995,2544.0,2543.9,9.261504]
[1751949680844,69.4019995,2544.0,2543.9,9.261504]
[1751949682253,71.75376209,2544.0,2543.9,9.261504]
[1751949682755,63.46476209,2544.0,2543.9,9.261504]
[1751949683050,67.9890995,2544.0,2543.9,9.261504]
[1751949683355,70.34086209,2544.0,2543.9,9.261504]
[1751949684154,67.9890995,2544.0,2543.9,9.261504]
[1751949684353,70.34086209,2544.0,2543.9,9.261504]
[1751949685657,62.05186209,2544.0,2543.9,9.261504]
[1751949685956,70.34086209,2544.0,2543.9,9.261504]
[1751949687963,64.22721971,2544.0,2543.9,10.277404]
[1751949688255,72.51621971,2544.0,2543.9,10.277404]
[1751949688461,70.34086209,2544.0,2543.9,10.277404]
[1751949689261,70.34086209,2544.0,2543.9,9.261504]
[1751949689762,68.62221971,2544.0,2543.9,9.261504]
[1751949690362,41.87621971,2544.0,2543.9,9.261504]
[1751949690760,42.55991971,2544.0,2543.9,9.261504]
[1751949691057,41.87621971,2544.0,2543.9,9.261504]
[1751949691458,42.55991971,2544.0,2543.9,9.261504]